Department Family,Entity,Date,Expense Type,Expense Area,Supplier,Transaction Number,Amount,Description
Department of Health,"NHS Beds, Luton & MK ICB",31/07/2022,Clinical&Medical-Independent Sector,MENTAL HEALTH ACT,LDA CARE LTD,41600944,56400.00,Care Fees
Department of Health,"NHS Beds, Luton & MK ICB",31/07/2022,Clinical&Medical-Independent Sector,MENTAL HEALTH ACT,SYMBIOSIS CARE LTD,41600951,40253.67,Care Fees
Department of Health,"NHS Beds, Luton & MK ICB",31/07/2022,Clinical&Medical-Independent Sector,MENTAL HEALTH ACT,ELYSIUM HEALTHCARE LTD,41600956,34690.93,Care Fees
Department of Health,"NHS Beds, Luton & MK ICB",31/07/2022,Clinical&Medical-Independent Sector,MENTAL HEALTH ACT,SYMBIOSIS CARE LTD,41600962,31227.43,Care Fees
Department of Health,"NHS Beds, Luton & MK ICB",31/07/2022,Cont Care-Learning Disab(<65),CHC AD FULL FUND PERS HLTH BUD,HAVILAH CARE LTD,41601365,33822.86,Personal health budget
Department of Health,"NHS Beds, Luton & MK ICB",31/07/2022,Cont Care-Physical Disab (<65),CHC ADULT FULLY FUNDED,FAIRLIE HEALTHCARE LTD,41601368,28420.89,Care Fees
Department of Health,"NHS Beds, Luton & MK ICB",31/07/2022,Cont Care- Palliative Care,CHC ADULT FULLY FUNDED,APEX CARE CONTRACTING LTD,41601372,26600.00,Care Fees
Department of Health,"NHS Beds, Luton & MK ICB",31/07/2022,C&M-APMS Contract Value,DELEGATED GP,ONEPRIMARYCARE LLP GP,41619351,54901.88,GP Services
Department of Health,"NHS Beds, Luton & MK ICB",31/07/2022,C&M-APMS Contract Value,DELEGATED GP,PRACTICE SURGERIES LTD,41619353,54040.58,GP Services
Department of Health,"NHS Beds, Luton & MK ICB",31/07/2022,C&M-APMS Contract Value,DELEGATED GP,KEY MEDICAL SERVICES LTD,41619354,32273.88,GP Services
Department of Health,"NHS Beds, Luton & MK ICB",31/07/2022,C&M-APMS Contract Value,DELEGATED GP,PRACTICE SURGERIES LTD,41619356,64331.22,GP Services
Department of Health,"NHS Beds, Luton & MK ICB",31/07/2022,C&M-APMS Contract Value,DELEGATED GP,PRACTICE SURGERIES LTD,41619357,102564.00,GP Services
Department of Health,"NHS Beds, Luton & MK ICB",31/07/2022,C&M-APMS Prem Healthcentre Rent,DELEGATED GP,PRACTICE SURGERIES LTD,41619357,46864.82,GP Services
Department of Health,"NHS Beds, Luton & MK ICB",31/07/2022,C&M-PMS Contract Value,DELEGATED GP,MKGP PLUS LTD (GP),41619360,48901.67,GP Services
Department of Health,"NHS Beds, Luton & MK ICB",31/07/2022,C&M-APMS Contract Value,DELEGATED GP,PRACTICE SURGERIES LTD,41619363,138003.86,GP Services
Department of Health,"NHS Beds, Luton & MK ICB",31/07/2022,C&M-APMS Contract Value,DELEGATED GP,SHORTSTOWN SURGERY,41619365,33121.31,GP Services
Department of Health,"NHS Beds, Luton & MK ICB",31/07/2022,C&M-APMS Contract Value,DELEGATED GP,HERTS URGENT CARE,41619367,128441.65,GP Services
Department of Health,"NHS Beds, Luton & MK ICB",31/07/2022,C&M-APMS Contract Value,DELEGATED GP,PUTNOE MEDICAL CENTRE PARTNERSHIP,41641477,161937.21,GP Services
Department of Health,"NHS Beds, Luton & MK ICB",31/07/2022,C&M-APMS Contract Value,DELEGATED GP,EAST LONDON NHS FOUNDATION TRUST (CAULDWELL MEDICAL PRACTICE),41641485,71762.28,GP Services
Department of Health,"NHS Beds, Luton & MK ICB",31/07/2022,Clinical&Medical-Independent Sector,ACUTE SERVICES B,SPIRE HEALTHCARE LTD,41653577,184411.42,Independent Sector Healthcare Contract
Department of Health,"NHS Beds, Luton & MK ICB",31/07/2022,Clinical&Medical-Independent Sector,ACUTE SERVICES B,RAMSAY HEALTH CARE UK T/A BLAKELANDS HOSPITAL,41653610,248762.08,Independent Sector Healthcare Contract
Department of Health,"NHS Beds, Luton & MK ICB",31/07/2022,Clinical&Medical-Independent Sector,ACUTE SERVICES B,HORTON HOSPITAL,41653623,95504.42,Independent Sector Healthcare Contract
Department of Health,"NHS Beds, Luton & MK ICB",31/07/2022,Clinical&Medical-Independent Sector,ACUTE SERVICES B,SPAMEDICA LTD,41653641,258477.00,Independent Sector Healthcare Contract
Department of Health,"NHS Beds, Luton & MK ICB",31/07/2022,Clinical&Medical-Drugs,PRESCRIBING,NORTH WEST OSTOMY SUPPLIES,41653706,32994.02,Stoma Products in Primary Care
Department of Health,"NHS Beds, Luton & MK ICB",31/07/2022,Hcare Srv Rec Fdtn Trust-Non Contract,ACUTE NCA,ASHFORD & ST PETERS HOSPITALS NHSFT,41662324,49000.00,Out of Area Treatment
Department of Health,"NHS Beds, Luton & MK ICB",31/07/2022,Hcare Srv Rec NHS Trust-Non Contract,ACUTE NCA,BARKING HAVERING AND REDBRIDGE HOSPITALS NHS TRUST,41662332,84000.00,Out of Area Treatment
Department of Health,"NHS Beds, Luton & MK ICB",31/07/2022,Hcare Srv Rec NHS Trust-Non Contract,MENTAL HEALTH NCA,BARNET ENFIELD AND HARINGEY MENTAL HEALTH NHS TRUST,41662338,55000.00,Out of Area Treatment
Department of Health,"NHS Beds, Luton & MK ICB",31/07/2022,Hcare Srv Rec Fdtn Trust-Non Contract,ACUTE NCA,BIRMINGHAM WOMENS AND CHILDRENS NHS FOUNDATION TRUST,41662369,53000.00,Out of Area Treatment
Department of Health,"NHS Beds, Luton & MK ICB",31/07/2022,Hcare Srv Rec Fdtn Trust-Non Contract,MENTAL HEALTH NCA,CAMBRIDGESHIRE & PETERBOROUGH NHS FOUNDATION TRUST,41662404,254000.00,Out of Area Treatment
Department of Health,"NHS Beds, Luton & MK ICB",31/07/2022,Hcare Srv Rec Fdtn Trust-Non Contract,MENTAL HEALTH NCA,CAMDEN & ISLINGTON NHS FOUNDATION TRUST,41662409,42000.00,Out of Area Treatment
Department of Health,"NHS Beds, Luton & MK ICB",31/07/2022,Hcare Srv Rec NHS Trust-Non Contract,COMMUNITY SERVICES A,CENTRAL LONDON COMMUNITY HEALTHCARE NHS TRUST,41662414,87000.00,NHS Healthcare Contract
Department of Health,"NHS Beds, Luton & MK ICB",31/07/2022,Hcare Srv Rec Fdtn Trust-Non Contract,ACUTE NCA,CHELSEA AND WESTMINSTER HOSPITAL NHS FOUNDATION TRUST,41662419,276000.00,Out of Area Treatment
Department of Health,"NHS Beds, Luton & MK ICB",31/07/2022,Hcare Srv Rec NHS Trust-Non Contract,ACUTE NCA,CROYDON HEALTH SERVICES NHS TRUST,41662447,71000.00,Out of Area Treatment
Department of Health,"NHS Beds, Luton & MK ICB",31/07/2022,Hcare Srv Rec Fdtn Trust-Non Contract,ACUTE NCA,DORSET COUNTY HOSPITAL NHS FOUNDATION TRUST,41662478,46000.00,Out of Area Treatment
Department of Health,"NHS Beds, Luton & MK ICB",31/07/2022,Clinical&Medical-Independent Sector,MENTAL HEALTH ACT,PRECIOUS HOMES LTD,41663435,48783.30,Care Fees
Department of Health,"NHS Beds, Luton & MK ICB",31/07/2022,Clinical&Medical-Independent Sector,MENTAL HEALTH ACT,PRECIOUS HOMES LTD,41663439,37185.60,Care Fees
Department of Health,"NHS Beds, Luton & MK ICB",31/07/2022,Clinical&Medical-Independent Sector,MENTAL HEALTH ACT,PRECIOUS HOMES LTD,41663440,31890.63,Care Fees
Department of Health,"NHS Beds, Luton & MK ICB",31/07/2022,Clinical&Medical-Independent Sector,MENTAL HEALTH ACT,PRECIOUS HOMES LTD,41663443,30861.90,Care Fees
Department of Health,"NHS Beds, Luton & MK ICB",31/07/2022,Hcare Srv Rec Fdtn Trust-Non Contract,ACUTE NCA,EAST KENT HOSPITALS UNIVERSITY NHS FOUNDATION TRUST,41666490,55000.00,Out of Area Treatment
Department of Health,"NHS Beds, Luton & MK ICB",31/07/2022,Hcare Srv Rec Fdtn Trust-Non Contract,ACUTE NCA,EAST SUFFOLK AND NORTH ESSEX NHS FOUNDATION TRUST,41666497,102000.00,Out of Area Treatment
Department of Health,"NHS Beds, Luton & MK ICB",31/07/2022,Hcare Srv Rec NHS Trust-Non Contract,ACUTE NCA,EAST SUSSEX HEALTHCARE NHS TRUST,41666501,41000.00,Out of Area Treatment
Department of Health,"NHS Beds, Luton & MK ICB",31/07/2022,Hcare Srv Rec NHS Trust-Non Contract,ACUTE NCA,EPSOM & ST HELIER UNIVERSITY HOSPITALS NHS TRUST,41666505,52000.00,Out of Area Treatment
Department of Health,"NHS Beds, Luton & MK ICB",31/07/2022,Hcare Srv Rec Fdtn Trust-Non Contract,ACUTE NCA,FRIMLEY HEALTH NHS FOUNDATION TRUST,41666509,159000.00,Out of Area Treatment
Department of Health,"NHS Beds, Luton & MK ICB",31/07/2022,Hcare Srv Rec Fdtn Trust-Non Contract,ACUTE NCA,GLOUCESTERSHIRE HOSPITALS NHS FOUNDATION TRUST,41666526,55000.00,Out of Area Treatment
Department of Health,"NHS Beds, Luton & MK ICB",31/07/2022,Hcare Srv Rec Fdtn Trust-Non Contract,ACUTE NCA,GREAT WESTERN HOSPITALS NHS FOUNDATION TRUST,41666530,31000.00,Out of Area Treatment
Department of Health,"NHS Beds, Luton & MK ICB",31/07/2022,Hcare Srv Rec Fdtn Trust-Non Contract,ACUTE NCA,HAMPSHIRE HOSPITALS NHS FOUNDATION TRUST,41666539,68000.00,Out of Area Treatment
Department of Health,"NHS Beds, Luton & MK ICB",31/07/2022,Hcare Srv Rec NHS Trust-Non Contract,COMMUNITY SERVICES A,HERTFORDSHIRE COMMUNITY NHS TRUST,41666549,317000.00,NHS Healthcare Contract
Department of Health,"NHS Beds, Luton & MK ICB",31/07/2022,Hcare Srv Rec Fdtn Trust-Non Contract,MENTAL HEALTH NCA,HERTFORDSHIRE PARTNERSHIP NHS FOUNDATION TRUST,41666553,151000.00,Out of Area Treatment
Department of Health,"NHS Beds, Luton & MK ICB",31/07/2022,Hcare Srv Rec Fdtn Trust-Non Contract,ACUTE NCA,HOMERTON UNIVERSITY HOSPITAL NHS FOUNDATION TRUST,41666556,160000.00,Out of Area Treatment
Department of Health,"NHS Beds, Luton & MK ICB",31/07/2022,Hcare Srv Rec NHS Trust-Non Contract,ACUTE NCA,HULL UNIVERSITY TEACHING HOSPITAL NHS TRUST,41666563,26000.00,Out of Area Treatment
Department of Health,"NHS Beds, Luton & MK ICB",31/07/2022,Hcare Srv Rec NHS Trust-Non Contract,ACUTE NCA,ISLE OF WIGHT NHS TRUST,41666573,39000.00,Out of Area Treatment
Department of Health,"NHS Beds, Luton & MK ICB",31/07/2022,Hcare Srv Rec Fdtn Trust-Non Contract,ACUTE NCA,JAMES PAGET UNIVERSITY HOSPITALS NHS FOUNDATION TRUST,41666577,156000.00,Out of Area Treatment
Department of Health,"NHS Beds, Luton & MK ICB",31/07/2022,Hcare Srv Rec Fdtn Trust-Non Contract,ACUTE NCA,KETTERING GENERAL HOSPITAL NHS FOUNDATION TRUST,41666586,364000.00,Out of Area Treatment
Department of Health,"NHS Beds, Luton & MK ICB",31/07/2022,Hcare Srv Rec Fdtn Trust-Non Contract,ACUTE NCA,KING`S COLLEGE HOSPITAL NHS FOUNDATION TRUST,41666591,324000.00,Out of Area Treatment
Department of Health,"NHS Beds, Luton & MK ICB",31/07/2022,Hcare Srv Rec Fdtn Trust-Non Contract,ACUTE NCA,KINGSTON HOSPITAL NHS FOUNDATION TRUST,41666594,43000.00,Out of Area Treatment
Department of Health,"NHS Beds, Luton & MK ICB",31/07/2022,Hcare Srv Rec NHS Trust-Non Contract,ACUTE NCA,LEEDS TEACHING HOSPITALS NHS TRUST,41666610,43000.00,Out of Area Treatment
Department of Health,"NHS Beds, Luton & MK ICB",31/07/2022,Hcare Srv Rec NHS Trust-Non Contract,ACUTE NCA,LEWISHAM & GREENWICH NHS TRUST,41666616,73000.00,Out of Area Treatment
Department of Health,"NHS Beds, Luton & MK ICB",31/07/2022,Hcare Srv Rec Fdtn Trust-Non Contract,ACUTE NCA,LIVERPOOL UNIVERSITY HOSPITALS NHS FOUNDATION TRUST,41666629,40000.00,Out of Area Treatment
Department of Health,"NHS Beds, Luton & MK ICB",31/07/2022,Hcare Srv Rec NHS Trust-Non Contract,ACUTE NCA,MAIDSTONE AND TUNBRIDGE WELLS NHS TRUST,41666638,36000.00,Out of Area Treatment
Department of Health,"NHS Beds, Luton & MK ICB",31/07/2022,Hcare Srv Rec Fdtn Trust-Non Contract,ACUTE NCA,MANCHESTER UNIVERSITY NHS FOUNDATION TRUST,41666642,56000.00,Out of Area Treatment
Department of Health,"NHS Beds, Luton & MK ICB",31/07/2022,Hcare Srv Rec Fdtn Trust-Non Contract,ACUTE NCA,MEDWAY NHS FOUNDATION TRUST,41666646,47000.00,Out of Area Treatment
Department of Health,"NHS Beds, Luton & MK ICB",31/07/2022,Hcare Srv Rec Fdtn Trust-Non Contract,ACUTE NCA,MID AND SOUTH ESSEX FOUNDATION TRUST,41666656,170000.00,Out of Area Treatment
Department of Health,"NHS Beds, Luton & MK ICB",31/07/2022,Hcare Srv Rec Fdtn Trust-Non Contract,ACUTE NCA,NORFOLK & NORWICH UNIVERSITY HOSPITALS NHS FOUNDATION TRUST,41666672,103000.00,Out of Area Treatment
Department of Health,"NHS Beds, Luton & MK ICB",31/07/2022,Hcare Srv Rec Fdtn Trust-Non Contract,MENTAL HEALTH NCA,NORTH EAST LONDON NHS FOUNDATION TRUST,41666686,32000.00,Out of Area Treatment
Department of Health,"NHS Beds, Luton & MK ICB",31/07/2022,Hcare Srv Rec NHS Trust-Non Contract,ACUTE NCA,NORTH MIDDLESEX UNIVERSITY HOSPITAL NHS TRUST,41666688,108000.00,Out of Area Treatment
Department of Health,"NHS Beds, Luton & MK ICB",31/07/2022,Hcare Srv Rec Fdtn Trust-Non Contract,MENTAL HEALTH NCA,NORTHAMPTONSHIRE HEALTHCARE NHS FOUNDATION TRUST,41666696,385000.00,Out of Area Treatment
Department of Health,"NHS Beds, Luton & MK ICB",31/07/2022,Hcare Srv Rec NHS Trust-Non Contract,ACUTE NCA,NOTTINGHAM UNIVERSITY HOSPITALS NHS TRUST,41666704,83000.00,Out of Area Treatment
Department of Health,"NHS Beds, Luton & MK ICB",31/07/2022,Hcare Srv Rec Fdtn Trust-Non Contract,MENTAL HEALTH NCA,OXFORD HEALTH NHS FOUNDATION TRUST,41666710,36000.00,Out of Area Treatment
Department of Health,"NHS Beds, Luton & MK ICB",31/07/2022,Hcare Srv Rec NHS Trust-Non Contract,ACUTE NCA,PORTSMOUTH HOSPITALS UNIVERSITY NHS TRUST,41666719,52000.00,Out of Area Treatment
Department of Health,"NHS Beds, Luton & MK ICB",31/07/2022,Hcare Srv Rec Fdtn Trust-Non Contract,ACUTE NCA,ROYAL BERKSHIRE NHS FOUNDATION TRUST,41666727,86000.00,Out of Area Treatment
Department of Health,"NHS Beds, Luton & MK ICB",31/07/2022,Hcare Srv Rec NHS Trust-Non Contract,ACUTE NCA,ROYAL CORNWALL HOSPITALS NHS TRUST,41666730,86000.00,Out of Area Treatment
Department of Health,"NHS Beds, Luton & MK ICB",31/07/2022,Hcare Srv Rec Fdtn Trust-Non Contract,ACUTE NCA,ROYAL DEVON UNIVERSITY HEALTHCARE NHS FOUNDATION TRUST,41666733,64000.00,Out of Area Treatment
Department of Health,"NHS Beds, Luton & MK ICB",31/07/2022,Hcare Srv Rec Fdtn Trust-Non Contract,ACUTE NCA,ROYAL SURREY COUNTY HOSPITAL NHS FOUNDATION TRUST,41666736,31000.00,Out of Area Treatment
Department of Health,"NHS Beds, Luton & MK ICB",31/07/2022,Hcare Srv Rec Fdtn Trust-Non Contract,ACUTE NCA,ROYAL UNITED HOSPITALS BATH NHS FOUNDATION TRUST,41666740,49000.00,Out of Area Treatment
Department of Health,"NHS Beds, Luton & MK ICB",31/07/2022,Hcare Srv Rec Fdtn Trust-Non Contract,ACUTE NCA,NORTHERN CARE ALLIANCE NHS FOUNDATION TRUST,41666743,45000.00,Out of Area Treatment
Department of Health,"NHS Beds, Luton & MK ICB",31/07/2022,Hcare Srv Rec NHS Trust-Non Contract,ACUTE NCA,SANDWELL AND WEST BIRMINGHAM HOSPITALS NHS TRUST,41666747,104000.00,Out of Area Treatment
Department of Health,"NHS Beds, Luton & MK ICB",31/07/2022,Hcare Srv Rec Fdtn Trust-Non Contract,ACUTE NCA,SHEFFIELD TEACHING HOSPITALS NHS FOUNDATION TRUST,41666757,36000.00,Out of Area Treatment
Department of Health,"NHS Beds, Luton & MK ICB",31/07/2022,Hcare Srv Rec NHS Trust-Non Contract,ACUTE NCA,SHREWSBURY&TELFORD HOSPITAL NHS TRUST,41666765,32000.00,Out of Area Treatment
Department of Health,"NHS Beds, Luton & MK ICB",31/07/2022,Hcare Srv Rec Fdtn Trust-Non Contract,ACUTE NCA,SOMERSET NHS FOUNDATION TRUST,41666773,39000.00,Out of Area Treatment
Department of Health,"NHS Beds, Luton & MK ICB",31/07/2022,Hcare Srv Rec Fdtn Trust-Non Contract,MENTAL HEALTH NCA,SOUTH LONDON AND MAUDSLEY NHS FOUNDATION TRUST,41666776,224000.00,Out of Area Treatment
Department of Health,"NHS Beds, Luton & MK ICB",31/07/2022,Hcare Srv Rec Fdtn Trust-Non Contract,ACUTE NCA,SOUTH WARWICKSHIRE NHS FOUNDATION TRUST,41666785,52000.00,Out of Area Treatment
Department of Health,"NHS Beds, Luton & MK ICB",31/07/2022,Hcare Srv Rec Fdtn Trust-Non Contract,ACUTE NCA,ST GEORGES UNIVERSITY HOSPITALS NHS FOUNDATION TRUST,41666801,178000.00,Out of Area Treatment
Department of Health,"NHS Beds, Luton & MK ICB",31/07/2022,Hcare Srv Rec NHS Trust-Non Contract,ACUTE NCA,SURREY AND SUSSEX HEALTHCARE NHS TRUST,41666814,49000.00,Out of Area Treatment
Department of Health,"NHS Beds, Luton & MK ICB",31/07/2022,Hcare Srv Rec Fdtn Trust-Non Contract,ACUTE NCA,HILLINGDON HOSPITALS NHS FOUNDATION TRUST,41666833,190000.00,Out of Area Treatment
Department of Health,"NHS Beds, Luton & MK ICB",31/07/2022,Hcare Srv Rec Fdtn Trust-Non Contract,ACUTE NCA,NEWCASTLE UPON TYNE HOSPITALS NHS FOUNDATION TRUST,41666837,26000.00,Out of Area Treatment
Department of Health,"NHS Beds, Luton & MK ICB",31/07/2022,Hcare Srv Rec NHS Trust-Non Contract,ACUTE NCA,PRINCESS ALEXANDRA HOSPITAL NHS TRUST (THE),41666840,69000.00,Out of Area Treatment
Department of Health,"NHS Beds, Luton & MK ICB",31/07/2022,Hcare Srv Rec Fdtn Trust-Non Contract,ACUTE NCA,QUEEN ELIZABETH HOSPITAL KINGS LYNN NHS FOUNDATION TRUST,41666842,66000.00,Out of Area Treatment
Department of Health,"NHS Beds, Luton & MK ICB",31/07/2022,Hcare Srv Rec Fdtn Trust-Non Contract,ACUTE NCA,ROBERT JONES & AGNES HUNT ORTHOPAEDIC HOSPITAL NHS FOUNDATION TRUST,41666844,29000.00,Out of Area Treatment
Department of Health,"NHS Beds, Luton & MK ICB",31/07/2022,Hcare Srv Rec Fdtn Trust-Non Contract,ACUTE NCA,ROYAL MARSDEN NHS FOUNDATION TRUST (THE),41666849,166000.00,Out of Area Treatment
Department of Health,"NHS Beds, Luton & MK ICB",31/07/2022,Hcare Srv Rec Fdtn Trust-Non Contract,ACUTE NCA,ROYAL ORTHOPAEDIC HOSPITAL NHS FOUNDATION TRUST,41666850,39000.00,Out of Area Treatment
Department of Health,"NHS Beds, Luton & MK ICB",31/07/2022,Hcare Srv Rec NHS Trust-Non Contract,ACUTE NCA,ROYAL WOLVERHAMPTON HOSPITALS NHS TRUST (THE),41666851,27000.00,Out of Area Treatment
Department of Health,"NHS Beds, Luton & MK ICB",31/07/2022,Hcare Srv Rec Fdtn Trust-Non Contract,ACUTE NCA,TORBAY AND SOUTH DEVON NHS FOUNDATION TRUST,41666853,34000.00,Out of Area Treatment
Department of Health,"NHS Beds, Luton & MK ICB",31/07/2022,Hcare Srv Rec NHS Trust-Non Contract,ACUTE NCA,UNITED LINCOLNSHIRE HOSPITALS NHS TRUST,41666854,76000.00,Out of Area Treatment
Department of Health,"NHS Beds, Luton & MK ICB",31/07/2022,Hcare Srv Rec Fdtn Trust-Non Contract,ACUTE NCA,UNI HOSPITAL SOUTHAMPTON NHS FT,41666856,70000.00,Out of Area Treatment
Department of Health,"NHS Beds, Luton & MK ICB",31/07/2022,Hcare Srv Rec Fdtn Trust-Non Contract,ACUTE NCA,UNIVERSITY HOSPITALS BIRMINGHAM NHS FOUNDATION TRUST,41666858,190000.00,Out of Area Treatment
Department of Health,"NHS Beds, Luton & MK ICB",31/07/2022,Hcare Srv Rec Fdtn Trust-Non Contract,ACUTE NCA,UNIVERSITY HOSPITALS BRISTOL AND WESTON NHS FOUNDATION TRUST,41666860,55000.00,Out of Area Treatment
Department of Health,"NHS Beds, Luton & MK ICB",31/07/2022,Hcare Srv Rec NHS Trust-Non Contract,ACUTE NCA,UNIVERSITY HOSPITALS COVENTRY AND WARWICKSHIRE NHS TRUST,41666861,154000.00,Out of Area Treatment
Department of Health,"NHS Beds, Luton & MK ICB",31/07/2022,Hcare Srv Rec Fdtn Trust-Non Contract,ACUTE NCA,UNIVERSITY HOSPITALS DORSET NHS FOUNDATION TRUST,41666863,86000.00,Out of Area Treatment
Department of Health,"NHS Beds, Luton & MK ICB",31/07/2022,Hcare Srv Rec Fdtn Trust-Non Contract,ACUTE NCA,UNIVERSITY HOSPITALS OF DERBY & BURTON NHS FOUNDATION TRUST,41666865,59000.00,Out of Area Treatment
Department of Health,"NHS Beds, Luton & MK ICB",31/07/2022,Hcare Srv Rec NHS Trust-Non Contract,ACUTE NCA,UNIVERSITY HOSPITALS OF LEICESTER NHS TRUST,41666867,179000.00,Out of Area Treatment
Department of Health,"NHS Beds, Luton & MK ICB",31/07/2022,Hcare Srv Rec NHS Trust-Non Contract,ACUTE NCA,UNIVERSITY HOSPITALS OF NORTH MIDLANDS NHS TRUST,41666870,27000.00,Out of Area Treatment
Department of Health,"NHS Beds, Luton & MK ICB",31/07/2022,Hcare Srv Rec NHS Trust-Non Contract,ACUTE NCA,UNIVERSITY HOSPITALS PLYMOUTH NHS TRUST,41666872,37000.00,Out of Area Treatment
Department of Health,"NHS Beds, Luton & MK ICB",31/07/2022,Hcare Srv Rec Fdtn Trust-Non Contract,ACUTE NCA,UNIVERSITY HOSPITALS SUSSEX NHS FOUNDATION TRUST,41666874,160000.00,Out of Area Treatment
Department of Health,"NHS Beds, Luton & MK ICB",31/07/2022,Hcare Srv Rec Fdtn Trust-Non Contract,ACUTE NCA,WEST SUFFOLK NHS FOUNDATION TRUST,41666882,50000.00,Out of Area Treatment
Department of Health,"NHS Beds, Luton & MK ICB",31/07/2022,Hcare Srv Rec NHS Trust-Non Contract,ACUTE NCA,WHITTINGTON HOSPITAL NHS TRUST (THE),41666883,131000.00,Out of Area Treatment
Department of Health,"NHS Beds, Luton & MK ICB",31/07/2022,Hcare Srv Rec NHS Trust-Non Contract,ACUTE NCA,WORCESTERSHIRE ACUTE HOSPITALS NHS TRUST,41666889,38000.00,Out of Area Treatment
Department of Health,"NHS Beds, Luton & MK ICB",31/07/2022,Hcare Srv Rec Fdtn Trust-Non Contract,ACUTE NCA,YORK AND SCARBOROUGH TEACHING HOSPITALS NHS FOUNDATION TRUST,41666899,40000.00,Out of Area Treatment
Department of Health,"NHS Beds, Luton & MK ICB",31/07/2022,Clinical&Medical-Independent Sector,COMMUNITY SERVICES D,NEWPORT PAGNELL MEDICAL CENTRE,41669398,27942.50,Urology Service
Department of Health,"NHS Beds, Luton & MK ICB",31/07/2022,Clinical&Medical-Independent Sector,ACUTE SERVICES B,CIRCLE HEALTH GROUP LTD,41669666,169960.07,Independent Sector Healthcare Contract
Department of Health,"NHS Beds, Luton & MK ICB",31/07/2022,Hcare Srv Rec NHS Trust-Contract Baseline,ACUTE SERVICES A,BARTS HEALTH NHS TRUST,41681489,47574.32,NHS Healthcare Contract
Department of Health,"NHS Beds, Luton & MK ICB",31/07/2022,Hcare Srv Rec Fdtn Trust-Contract Baseline,ACUTE SERVICES A,BEDFORDSHIRE HOSPITAL FOUNDATION TRUST,41681490,43272927.62,NHS Healthcare Contract
Department of Health,"NHS Beds, Luton & MK ICB",31/07/2022,Hcare Srv Rec Fdtn Trust-Contract Baseline,DELEGATED GP,BEDFORDSHIRE HOSPITAL FOUNDATION TRUST,41681491,210030.67,GP Services
Department of Health,"NHS Beds, Luton & MK ICB",31/07/2022,Hcare Srv Rec Fdtn Trust-Contract Baseline,LONG TERM CONDITIONS,BEDFORDSHIRE HOSPITAL FOUNDATION TRUST,41681492,40285.50,NHS Healthcare Contract
Department of Health,"NHS Beds, Luton & MK ICB",31/07/2022,Hcare Srv Rec Fdtn Trust-Contract Baseline,COMMUNITY SERVICES A,BEDFORDSHIRE HOSPITAL FOUNDATION TRUST,41681493,191516.25,NHS Healthcare Contract
Department of Health,"NHS Beds, Luton & MK ICB",31/07/2022,Hcare Srv Rec Fdtn Trust-Contract Baseline,PATIENT TRANSPORT SERVICES,BEDFORDSHIRE HOSPITAL FOUNDATION TRUST,41681494,33308.83,Patient Transport
Department of Health,"NHS Beds, Luton & MK ICB",31/07/2022,Hcare Srv Rec Fdtn Trust-Contract Baseline,ACUTE SERVICES A,BEDFORDSHIRE HOSPITAL FOUNDATION TRUST,41681495,1269083.33,NHS Healthcare Contract
Department of Health,"NHS Beds, Luton & MK ICB",31/07/2022,Hcare Srv Rec NHS Trust-Contract Baseline,ACUTE SERVICES A,BUCKINGHAMSHIRE HEALTHCARE NHS TRUST,41681496,906360.68,NHS Healthcare Contract
Department of Health,"NHS Beds, Luton & MK ICB",31/07/2022,Hcare Srv Rec Fdtn Trust-Contract Baseline,ACUTE SERVICES A,CAMBRIDGE UNIVERSITY HOSPITALS NHS FOUNDATION TRUST,41681497,1293312.00,NHS Healthcare Contract
Department of Health,"NHS Beds, Luton & MK ICB",31/07/2022,Hcare Srv Rec NHS Trust-Contract Baseline,COMMUNITY SERVICES A,CAMBRIDGESHIRE COMMUNITY SERVICES,41681499,2045253.94,NHS Healthcare Contract
Department of Health,"NHS Beds, Luton & MK ICB",31/07/2022,Hcare Srv Rec Fdtn Trust-Contract Baseline,COMMUNITY SERVICES A,CENTRAL & NORTH WEST LONDON NHS FOUNDATION TRUST,41681501,1875415.68,NHS Healthcare Contract
Department of Health,"NHS Beds, Luton & MK ICB",31/07/2022,Hcare Srv Rec Fdtn Trust-Contract Baseline,MENTAL HEALTH SERVICES A,CENTRAL & NORTH WEST LONDON NHS FOUNDATION TRUST,41681507,3344989.33,NHS Healthcare Contract
Department of Health,"NHS Beds, Luton & MK ICB",31/07/2022,Hcare Srv Rec NHS Trust-Contract Baseline,ACUTE SERVICES A,EAST AND NORTH HERTFORDSHIRE NHS TRUST,41681509,3401862.18,NHS Healthcare Contract
Department of Health,"NHS Beds, Luton & MK ICB",31/07/2022,Hcare Srv Rec Fdtn Trust-Contract Baseline,COMMUNITY SERVICES A,EAST LONDON NHS FOUNDATION TRUST,41681516,4132342.65,NHS Healthcare Contract
Department of Health,"NHS Beds, Luton & MK ICB",31/07/2022,Hcare Srv Rec Fdtn Trust-Contract Baseline,LONG TERM CONDITIONS,EAST LONDON NHS FOUNDATION TRUST,41681518,28033.33,NHS Healthcare Contract
Department of Health,"NHS Beds, Luton & MK ICB",31/07/2022,Hcare Srv Rec Fdtn Trust-Contract Baseline,MENTAL HEALTH SERVICES A,EAST LONDON NHS FOUNDATION TRUST,41681520,9218242.96,NHS Healthcare Contract
Department of Health,"NHS Beds, Luton & MK ICB",31/07/2022,Hcare Srv Rec NHS Trust-Contract Baseline,AMBULANCE SERVICES,EAST OF ENGLAND AMBULANCE SERVICE NHS TRUST,41681522,2820085.05,NHS Healthcare Contract
Department of Health,"NHS Beds, Luton & MK ICB",31/07/2022,Oth Travel Costs-Patient Transport,PATIENT TRANSPORT SERVICES,EAST OF ENGLAND AMBULANCE SERVICE NHS TRUST,41681523,444744.75,Patient Transport
Department of Health,"NHS Beds, Luton & MK ICB",31/07/2022,Hcare Srv Rec Fdtn Trust-Contract Baseline,ACUTE SERVICES A,GREAT ORMOND STREET HOSPITAL FOR CHILDREN NHS FOUNDATION TRUST,41681525,109994.67,NHS Healthcare Contract
Department of Health,"NHS Beds, Luton & MK ICB",31/07/2022,Hcare Srv Rec Fdtn Trust-Contract Baseline,ACUTE SERVICES A,GUYS & ST THOMAS HOSPITAL NHS FOUNDATION TRUST,41681527,425813.33,NHS Healthcare Contract
Department of Health,"NHS Beds, Luton & MK ICB",31/07/2022,Hcare Srv Rec NHS Trust-Contract Baseline,ACUTE SERVICES A,IMPERIAL COLLEGE HEALTHCARE NHS TRUST,41681530,151296.00,NHS Healthcare Contract
Department of Health,"NHS Beds, Luton & MK ICB",31/07/2022,Hcare Srv Rec NHS Trust-Contract Baseline,ACUTE SERVICES A,LONDON NORTH WEST HEALTHCARE NHS TRUST,41681532,123818.67,NHS Healthcare Contract
Department of Health,"NHS Beds, Luton & MK ICB",31/07/2022,Hcare Srv Rec Fdtn Trust-Contract Baseline,ACUTE SERVICES A,MILTON KEYNES HOSPITAL NHS FOUNDATION TRUST,41681534,19709138.82,NHS Healthcare Contract
Department of Health,"NHS Beds, Luton & MK ICB",31/07/2022,Hcare Srv Rec Fdtn Trust-Contract Baseline,ACUTE SERVICES A,MILTON KEYNES HOSPITAL NHS FOUNDATION TRUST,41681536,615083.33,NHS Healthcare Contract
Department of Health,"NHS Beds, Luton & MK ICB",31/07/2022,Hcare Srv Rec Fdtn Trust-Contract Baseline,ACUTE SERVICES A,MOORFIELDS EYE HOSPITAL NHS FOUNDATION TRUST,41681538,173223.00,NHS Healthcare Contract
Department of Health,"NHS Beds, Luton & MK ICB",31/07/2022,Hcare Srv Rec Fdtn Trust-Contract Baseline,ACUTE SERVICES A,NORTH WEST ANGLIA NHS FOUNDATION TRUST,41681541,103888.00,NHS Healthcare Contract
Department of Health,"NHS Beds, Luton & MK ICB",31/07/2022,Hcare Srv Rec NHS Trust-Contract Baseline,ACUTE SERVICES A,NORTHAMPTON GENERAL HOSPITAL NHS TRUST,41681545,267700.68,NHS Healthcare Contract
Department of Health,"NHS Beds, Luton & MK ICB",31/07/2022,Hcare Srv Rec Fdtn Trust-Contract Baseline,ACUTE SERVICES A,OXFORD UNIVERSITY HOSPITALS NHS FOUNDATION TRUST,41681548,796501.33,NHS Healthcare Contract
Department of Health,"NHS Beds, Luton & MK ICB",31/07/2022,Hcare Srv Rec Fdtn Trust-Contract Baseline,ACUTE SERVICES A,ROYAL FREE LONDON NHS FOUNDATION TRUST,41681552,234837.33,NHS Healthcare Contract
Department of Health,"NHS Beds, Luton & MK ICB",31/07/2022,Hcare Srv Rec NHS Trust-Contract Baseline,ACUTE SERVICES A,ROYAL NATIONAL ORTHOPAEDIC HOSPITAL NHS TRUST,41681555,298445.68,NHS Healthcare Contract
Department of Health,"NHS Beds, Luton & MK ICB",31/07/2022,Hcare Srv Rec Fdtn Trust-Contract Baseline,ACUTE SERVICES A,ROYAL PAPWORTH HOSPITAL NHS FOUNDATION TRUST,41681559,246363.00,NHS Healthcare Contract
Department of Health,"NHS Beds, Luton & MK ICB",31/07/2022,Hcare Srv Rec Fdtn Trust-Contract Baseline,AMBULANCE SERVICES,SOUTH CENTRAL AMBULANCE SERVICE NHS FOUNDATION TRUST,41681563,1185860.65,NHS Healthcare Contract
Department of Health,"NHS Beds, Luton & MK ICB",31/07/2022,Oth Travel Costs-Patient Transport,PATIENT TRANSPORT SERVICES,SOUTH CENTRAL AMBULANCE SERVICE NHS FOUNDATION TRUST,41681567,172564.10,Patient Transport
Department of Health,"NHS Beds, Luton & MK ICB",31/07/2022,Hcare Srv Rec Fdtn Trust-Contract Baseline,ACUTE SERVICES A,UNIVERSITY COLLEGE LONDON HOSPITALS NHS FOUNDATION TRUST,41681571,478293.33,NHS Healthcare Contract
Department of Health,"NHS Beds, Luton & MK ICB",31/07/2022,Hcare Srv Rec NHS Trust-Contract Baseline,ACUTE SERVICES A,WEST HERTFORDSHIRE HOSPITALS NHS TRUST,41681574,273600.00,NHS Healthcare Contract
Department of Health,"NHS Beds, Luton & MK ICB",31/07/2022,Cont Care-Learning Disab(<65),CHC AD FULL FUND PERS HLTH BUD,CHILTERN HEALTHCARE,41694811,34560.00,Personal health budget
Department of Health,"NHS Beds, Luton & MK ICB",31/07/2022,Cont Care-Learning Disab(<65),CHC AD FULL FUND PERS HLTH BUD,PATERSON GROUP (HEALTHCARE),41694812,32160.60,Personal health budget
Department of Health,"NHS Beds, Luton & MK ICB",31/07/2022,Cont Care-Mental Health (<65),CHC ADULT FULLY FUNDED,PRECIOUS HOMES SUPPORT LTD,41694814,31557.56,Care Fees
Department of Health,"NHS Beds, Luton & MK ICB",31/07/2022,Cont Care-Mental Health (<65),CHC ADULT FULLY FUNDED,HESLEY GROUP,41694815,30932.24,Care Fees
Department of Health,"NHS Beds, Luton & MK ICB",31/07/2022,Cont Care-Learning Disab(<65),CHC AD FULL FUND PERS HLTH BUD,PROTEA CARE HOMES (KENT) LTD,41694817,25905.56,Personal health budget
Department of Health,"NHS Beds, Luton & MK ICB",31/07/2022,Cont Care-Physical Disab (<65),CHC ADULT FULLY FUNDED,ROYAL BUCKINGHAMSHIRE HOSPITAL,41697779,57857.14,Care Fees
Department of Health,"NHS Beds, Luton & MK ICB",31/07/2022,Cont Care-Physical Disab (<65),CHC AD FULL FUND PERS HLTH BUD,BESPOKE HEALTH & SOCIAL CARE LTD,41697782,42344.40,Personal health budget
Department of Health,"NHS Beds, Luton & MK ICB",31/07/2022,Cont Care-Mental Health (<65),CHC ADULT FULLY FUNDED,HESLEY GROUP,41697785,29934.43,Care Fees
Department of Health,"NHS Beds, Luton & MK ICB",31/07/2022,Income tax <1Yr,BALANCE SHEET,HMRC,41699854,243542.86,Tax and NI
Department of Health,"NHS Beds, Luton & MK ICB",31/07/2022,National Insurance < 1 yr-NI- ERS,BALANCE SHEET,HMRC,41699854,188947.20,Tax and NI
Department of Health,"NHS Beds, Luton & MK ICB",31/07/2022,National Insurance < 1 yr-NI-EES,BALANCE SHEET,HMRC,41699854,133778.99,Tax and NI
Department of Health,"NHS Beds, Luton & MK ICB",31/07/2022,Charges from CSU,CONTRACT MANAGEMENT,NHS ARDEN AND GEM CSU,41702642,131041.67,Commissioning Support Unit Contract
Department of Health,"NHS Beds, Luton & MK ICB",31/07/2022,C&M-GMS Global Sum,DELEGATED GP,FISHERMEAD MEDICAL CENTRE,41716831,52249.38,GP Services
Department of Health,"NHS Beds, Luton & MK ICB",31/07/2022,C&M-GMS Global Sum,DELEGATED GP,PARKSIDE MEDICAL CENTRE,41716835,81784.90,GP Services
Department of Health,"NHS Beds, Luton & MK ICB",31/07/2022,C&M-GMS Prem Rates,DELEGATED GP,PARKSIDE MEDICAL CENTRE,41716835,202459.00,GP Services
Department of Health,"NHS Beds, Luton & MK ICB",31/07/2022,C&M-GMS Global Sum,DELEGATED GP,ASHFIELD MEDICAL CENTRE MILTON KEYNES,41716840,91388.13,GP Services
Department of Health,"NHS Beds, Luton & MK ICB",31/07/2022,C&M-GMS Prem Actual Rent,DELEGATED GP,ASHFIELD MEDICAL CENTRE MILTON KEYNES,41716840,44850.00,GP Services
Department of Health,"NHS Beds, Luton & MK ICB",31/07/2022,C&M-GMS Global Sum,DELEGATED GP,PURBECK HEALTH CENTRE,41716842,46007.15,GP Services
Department of Health,"NHS Beds, Luton & MK ICB",31/07/2022,C&M-GMS Global Sum,DELEGATED GP,OAKRIDGE PARK MEDICAL CENTRE,41716844,83742.54,GP Services
Department of Health,"NHS Beds, Luton & MK ICB",31/07/2022,C&M-GMS Prem Healthcentre Rent,DELEGATED GP,OAKRIDGE PARK MEDICAL CENTRE,41716844,31902.90,GP Services
Department of Health,"NHS Beds, Luton & MK ICB",31/07/2022,C&M-GMS Global Sum,DELEGATED GP,BEDFORD STREET SURGERY,41716846,105426.35,GP Services
Department of Health,"NHS Beds, Luton & MK ICB",31/07/2022,C&M-GMS Global Sum,DELEGATED GP,COBBS GARDEN SURGERY,41716849,67145.10,GP Services
Department of Health,"NHS Beds, Luton & MK ICB",31/07/2022,C&M-GMS Global Sum,DELEGATED GP,MILTON KEYNES VILLAGE PRACTICE,41716851,99221.85,GP Services
Department of Health,"NHS Beds, Luton & MK ICB",31/07/2022,C&M-GMS Prem Actual Rent,DELEGATED GP,MILTON KEYNES VILLAGE PRACTICE,41716851,44400.00,GP Services
Department of Health,"NHS Beds, Luton & MK ICB",31/07/2022,C&M-GMS Global Sum,DELEGATED GP,CMK MEDICAL CENTRE,41716856,135329.17,GP Services
Department of Health,"NHS Beds, Luton & MK ICB",31/07/2022,C&M-GMS Prem Actual Rent,DELEGATED GP,CMK MEDICAL CENTRE,41716856,84864.00,GP Services
Department of Health,"NHS Beds, Luton & MK ICB",31/07/2022,C&M-GMS Global Sum,DELEGATED GP,WALNUT TREE HEALTH CENTRE,41716858,77564.14,GP Services
Department of Health,"NHS Beds, Luton & MK ICB",31/07/2022,C&M-GMS Prem Notional Rent,DELEGATED GP,WALNUT TREE HEALTH CENTRE,41716858,45496.82,GP Services
Department of Health,"NHS Beds, Luton & MK ICB",31/07/2022,C&M-GMS Global Sum,DELEGATED GP,WESTFIELD ROAD SURGERY,41716864,61339.89,GP Services
Department of Health,"NHS Beds, Luton & MK ICB",31/07/2022,C&M-GMS Global Sum,DELEGATED GP,SOVEREIGN MEDICAL CENTRE,41716866,90016.46,GP Services
Department of Health,"NHS Beds, Luton & MK ICB",31/07/2022,C&M-GMS Global Sum,DELEGATED GP,WATLING VALE MEDICAL CENTRE,41716870,78791.74,GP Services
Department of Health,"NHS Beds, Luton & MK ICB",31/07/2022,C&M-GMS Global Sum,DELEGATED GP,HILLTOPS MEDICAL CENTRE,41716876,111494.72,GP Services
Department of Health,"NHS Beds, Luton & MK ICB",31/07/2022,C&M-GMS Prem Notional Rent,DELEGATED GP,HILLTOPS MEDICAL CENTRE,41716876,39768.13,GP Services
Department of Health,"NHS Beds, Luton & MK ICB",31/07/2022,C&M-GMS Global Sum,DELEGATED GP,WOLVERTON HEALTH CENTRE,41716878,113194.32,GP Services
Department of Health,"NHS Beds, Luton & MK ICB",31/07/2022,C&M-GMS Prem Actual Rent,DELEGATED GP,WOLVERTON HEALTH CENTRE,41716878,59100.00,GP Services
Department of Health,"NHS Beds, Luton & MK ICB",31/07/2022,C&M-GMS Prem Rates,DELEGATED GP,WOLVERTON HEALTH CENTRE,41716878,53760.00,GP Services
Department of Health,"NHS Beds, Luton & MK ICB",31/07/2022,Clinical&Medical-Independent Sector,MENTAL HEALTH ACT,SYMBIOSIS CARE LTD,41717064,59883.43,Care Fees
Department of Health,"NHS Beds, Luton & MK ICB",31/07/2022,Clinical&Medical-Independent Sector,MENTAL HEALTH ACT,SYMBIOSIS CARE LTD,41717067,28656.00,Care Fees
Department of Health,"NHS Beds, Luton & MK ICB",31/07/2022,Clinical&Medical-Independent Sector,MENTAL HEALTH ACT,ELYSIUM HEALTHCARE LTD,41717069,25397.70,Care Fees
Department of Health,"NHS Beds, Luton & MK ICB",31/07/2022,C&M-GMS Global Sum,DELEGATED GP,STONEDEAN PRACTICE,41729668,59020.53,GP Services
Department of Health,"NHS Beds, Luton & MK ICB",31/07/2022,C&M-GMS Global Sum,DELEGATED GP,NEWPORT PAGNELL MEDICAL CENTRE,41729678,167266.74,GP Services
Department of Health,"NHS Beds, Luton & MK ICB",31/07/2022,C&M-GMS Global Sum,DELEGATED GP,WESTCROFT HEALTH CENTRE,41729680,89799.72,GP Services
Department of Health,"NHS Beds, Luton & MK ICB",31/07/2022,C&M-GMS Prem Actual Rent,DELEGATED GP,WESTCROFT HEALTH CENTRE,41729680,33837.00,GP Services
Department of Health,"NHS Beds, Luton & MK ICB",31/07/2022,C&M-GMS Global Sum,DELEGATED GP,RED HOUSE SURGERY,41729683,113591.85,GP Services
Department of Health,"NHS Beds, Luton & MK ICB",31/07/2022,C&M-GMS Global Sum,DELEGATED GP,STONY MEDICAL CENTRE,41729689,93958.75,GP Services
Department of Health,"NHS Beds, Luton & MK ICB",31/07/2022,C&M-GMS Prem Healthcentre Rent,DELEGATED GP,STONY MEDICAL CENTRE,41729689,25531.25,GP Services
Department of Health,"NHS Beds, Luton & MK ICB",31/07/2022,C&M-GMS Global Sum,DELEGATED GP,GROVE SURGERY,41729696,67671.36,GP Services
Department of Health,"NHS Beds, Luton & MK ICB",31/07/2022,C&M-GMS Global Sum,DELEGATED GP,WHADDON HEALTHCARE,41729700,163138.12,GP Services
Department of Health,"NHS Beds, Luton & MK ICB",31/07/2022,C&M-GMS Prem Actual Rent,DELEGATED GP,WHADDON HEALTHCARE,41729700,42483.29,GP Services
Department of Health,"NHS Beds, Luton & MK ICB",31/07/2022,SYS-Non  NHS A/P-Cutover Bal <1Yr,BALANCE SHEET,SPECSAVERS HEARCARE LTD,41780763,30450.10,Hearing Aid Service
Department of Health,"NHS Beds, Luton & MK ICB",31/07/2022,SYS-Non  NHS A/P-Cutover Bal <1Yr,BALANCE SHEET,CIRCLE CLINICAL SERVICES LTD,41780791,887500.00,Independent Sector Healthcare Contract
Department of Health,"NHS Beds, Luton & MK ICB",31/07/2022,SYS-Non  NHS A/P-Cutover Bal <1Yr,BALANCE SHEET,CIRCLE CLINICAL SERVICES LTD,41780792,41667.00,Independent Sector Healthcare Contract
Department of Health,"NHS Beds, Luton & MK ICB",31/07/2022,SYS-NHS A/P Control-Cutover Bal <1Yr,BALANCE SHEET,ST GEORGES UNIVERSITY HOSPITALS NHS FOUNDATION TRUST,41780798,90306.86,Out of Area Treatment
Department of Health,"NHS Beds, Luton & MK ICB",31/07/2022,SYS-NHS A/P Control-Cutover Bal <1Yr,BALANCE SHEET,ST GEORGES UNIVERSITY HOSPITALS NHS FOUNDATION TRUST,41780820,114816.35,Out of Area Treatment
Department of Health,"NHS Beds, Luton & MK ICB",31/07/2022,SYS-NHS A/P Control-Cutover Bal <1Yr,BALANCE SHEET,ST GEORGES UNIVERSITY HOSPITALS NHS FOUNDATION TRUST,41780826,-85130.12,Out of Area Treatment
Department of Health,"NHS Beds, Luton & MK ICB",31/07/2022,SYS-NHS A/P Control-Cutover Bal <1Yr,BALANCE SHEET,NHS ENGLAND,41780843,-32099.35,Primary Care Medical Recharge
Department of Health,"NHS Beds, Luton & MK ICB",31/07/2022,SYS-NHS A/P Control-Cutover Bal <1Yr,BALANCE SHEET,NHS SUFFOLK AND NORTH EAST ESSEX ICB,41780846,48387.70,Primary Care Careers Contribution
Department of Health,"NHS Beds, Luton & MK ICB",31/07/2022,SYS-NHS A/P Control-Cutover Bal <1Yr,BALANCE SHEET,NHS BUCKINGHAMSHIRE OXFORDSHIRE AND BERKSHIRE WEST ICB,41780852,98130.00,Better Care Fund Contribution
Department of Health,"NHS Beds, Luton & MK ICB",31/07/2022,SYS-NHS A/P Control-Cutover Bal <1Yr,BALANCE SHEET,NHS ARDEN AND GEM CSU,41780858,134461.67,Commissioning Support Unit Contract
Department of Health,"NHS Beds, Luton & MK ICB",31/07/2022,SYS-NHS A/P Control-Cutover Bal <1Yr,BALANCE SHEET,EAST OF ENGLAND AMBULANCE SERVICE NHS TRUST,41780873,374211.00,Vehicle Replacement
Department of Health,"NHS Beds, Luton & MK ICB",31/07/2022,SYS-Non  NHS A/P-Cutover Bal <1Yr,BALANCE SHEET,RAMSAY HEALTH CARE UK T/A BLAKELANDS HOSPITAL,41780911,-552370.67,Independent Sector Healthcare Contract
Department of Health,"NHS Beds, Luton & MK ICB",31/07/2022,SYS-Non  NHS A/P-Cutover Bal <1Yr,BALANCE SHEET,RAMSAY HEALTH CARE UK T/A BLAKELANDS HOSPITAL,41780912,248762.08,Independent Sector Healthcare Contract
Department of Health,"NHS Beds, Luton & MK ICB",31/07/2022,SYS-Non  NHS A/P-Cutover Bal <1Yr,BALANCE SHEET,PINEHILL HOSPITAL,41780913,-297712.22,Independent Sector Healthcare Contract
Department of Health,"NHS Beds, Luton & MK ICB",31/07/2022,SYS-Non  NHS A/P-Cutover Bal <1Yr,BALANCE SHEET,PINEHILL HOSPITAL,41780914,-384869.83,Independent Sector Healthcare Contract
Department of Health,"NHS Beds, Luton & MK ICB",31/07/2022,SYS-Non  NHS A/P-Cutover Bal <1Yr,BALANCE SHEET,PINEHILL HOSPITAL,41780915,192711.00,Independent Sector Healthcare Contract
Department of Health,"NHS Beds, Luton & MK ICB",31/07/2022,SYS-Non  NHS A/P-Cutover Bal <1Yr,BALANCE SHEET,PINEHILL HOSPITAL,41780916,209927.00,Independent Sector Healthcare Contract
Department of Health,"NHS Beds, Luton & MK ICB",31/07/2022,SYS-Non  NHS A/P-Cutover Bal <1Yr,BALANCE SHEET,HORTON HOSPITAL,41780935,95504.42,Independent Sector Healthcare Contract
Department of Health,"NHS Beds, Luton & MK ICB",31/07/2022,SYS-Non  NHS A/P-Cutover Bal <1Yr,BALANCE SHEET,REDCENTRIC SOLUTIONS LTD,41780940,-71712.00,IT Services
Department of Health,"NHS Beds, Luton & MK ICB",31/07/2022,SYS-Non  NHS A/P-Cutover Bal <1Yr,BALANCE SHEET,REDCENTRIC SOLUTIONS LTD,41780941,-53460.00,IT Services
Department of Health,"NHS Beds, Luton & MK ICB",31/07/2022,SYS-Non  NHS A/P-Cutover Bal <1Yr,BALANCE SHEET,HORTON HOSPITAL,41780951,-121473.34,Independent Sector Healthcare Contract
Department of Health,"NHS Beds, Luton & MK ICB",31/07/2022,SYS-Non  NHS A/P-Cutover Bal <1Yr,BALANCE SHEET,WHADDON MEDICAL CENTRE,41780963,31054.00,Community Respiratory Service
Department of Health,"NHS Beds, Luton & MK ICB",31/07/2022,SYS-Non  NHS A/P-Cutover Bal <1Yr,BALANCE SHEET,WHADDON MEDICAL CENTRE,41780964,50928.00,Community Cardiology Service
Department of Health,"NHS Beds, Luton & MK ICB",31/07/2022,SYS-Non  NHS A/P-Cutover Bal <1Yr,BALANCE SHEET,WHADDON MEDICAL CENTRE,41780967,40147.50,Community Respiratory Service
Department of Health,"NHS Beds, Luton & MK ICB",31/07/2022,Contr Estate Management,ESTATES AND FACILITIES,NHS PROPERTY SERVICES LTD,41784745,70166.65,Tenant Service Charge
Department of Health,"NHS Beds, Luton & MK ICB",31/07/2022,Voids and Subsidies,PROGRAMME ESTATES & FACILITIES COSTS,NHS PROPERTY SERVICES LTD,41784787,36952.72,"NHS Propery Services (leases, rent etc)"
Department of Health,"NHS Beds, Luton & MK ICB",31/07/2022,Cont Care-Mental Health (<65),CHC ADULT FULLY FUNDED,PRECIOUS HOMES SUPPORT LTD,41801809,30539.57,Care Fees
Department of Health,"NHS Beds, Luton & MK ICB",31/07/2022,Clinical&Medical-Othe Public Sector,CHILDREN SERVICES,MILTON KEYNES COUNCIL,41807395,31502.00,Health Contribution to Youth Offending Team
Department of Health,"NHS Beds, Luton & MK ICB",31/07/2022,Clinical&Medical-Independent Sector,TERMINATION OF PREGNANCY (TOP),BRITISH PREGNANCY ADVISORY SERVICE,41807418,111055.00,Independent Sector Healthcare Contract
Department of Health,"NHS Beds, Luton & MK ICB",31/07/2022,C&M-GMS Global Sum,DELEGATED GP,WHEATFIELD SURGERY,41826075,99701.71,GP Services
Department of Health,"NHS Beds, Luton & MK ICB",31/07/2022,C&M-GMS Global Sum,DELEGATED GP,FLITWICK SURGERY,41826077,105906.47,GP Services
Department of Health,"NHS Beds, Luton & MK ICB",31/07/2022,C&M-GMS Global Sum,DELEGATED GP,GARDENIA & MARSH FARM PRACTICE,41826079,97262.19,GP Services
Department of Health,"NHS Beds, Luton & MK ICB",31/07/2022,C&M-GMS Global Sum,DELEGATED GP,HEALTHY LIVING CENTRE,41826083,67195.80,GP Services
Department of Health,"NHS Beds, Luton & MK ICB",31/07/2022,C&M-GMS Global Sum,DELEGATED GP,GT BARFORD SURGERY,41826085,44972.28,GP Services
Department of Health,"NHS Beds, Luton & MK ICB",31/07/2022,C&M-GMS Global Sum,DELEGATED GP,IVEL MEDICAL CENTRE,41826086,105765.03,GP Services
Department of Health,"NHS Beds, Luton & MK ICB",31/07/2022,C&M-GMS Prem Actual Rent,DELEGATED GP,IVEL MEDICAL CENTRE,41826086,35125.00,GP Services
Department of Health,"NHS Beds, Luton & MK ICB",31/07/2022,C&M-GMS Global Sum,DELEGATED GP,GREENSANDS SURGERY,41826089,76538.57,GP Services
Department of Health,"NHS Beds, Luton & MK ICB",31/07/2022,C&M-GMS Global Sum,DELEGATED GP,GREENSANDS MEDICAL PRACTICE,41826091,104120.44,GP Services
Department of Health,"NHS Beds, Luton & MK ICB",31/07/2022,C&M-GMS Global Sum,DELEGATED GP,HOUGHTON CLOSE SURGERY,41826093,91553.84,GP Services
Department of Health,"NHS Beds, Luton & MK ICB",31/07/2022,C&M-GMS PCO Locum Adop/Pat/Mat,DELEGATED GP,HOUGHTON CLOSE SURGERY,41826093,31999.81,GP Services
Department of Health,"NHS Beds, Luton & MK ICB",31/07/2022,C&M-GMS Global Sum,DELEGATED GP,HOUGHTON REGIS MEDICAL CENTRE,41826095,91029.55,GP Services
Department of Health,"NHS Beds, Luton & MK ICB",31/07/2022,C&M-GMS Global Sum,DELEGATED GP,KING STREET SURGERY BEDFORD,41826097,168456.53,GP Services
Department of Health,"NHS Beds, Luton & MK ICB",31/07/2022,C&M-GMS PCO Locum Adop/Pat/Mat,DELEGATED GP,KING STREET SURGERY BEDFORD,41826097,26952.80,GP Services
Department of Health,"NHS Beds, Luton & MK ICB",31/07/2022,C&M-GMS Global Sum,DELEGATED GP,KINGSBURY COURT,41826099,75265.51,GP Services
Department of Health,"NHS Beds, Luton & MK ICB",31/07/2022,C&M-GMS Global Sum,DELEGATED GP,LINDEN ROAD SURGERY,41826102,49883.12,GP Services
Department of Health,"NHS Beds, Luton & MK ICB",31/07/2022,C&M-GMS Global Sum,DELEGATED GP,KIRBY ROAD MEDICAL PRACTICE,41826104,63870.69,GP Services
Department of Health,"NHS Beds, Luton & MK ICB",31/07/2022,C&M-GMS Global Sum,DELEGATED GP,LISTER HOUSE SURGERY LUTON,41826106,46462.58,GP Services
Department of Health,"NHS Beds, Luton & MK ICB",31/07/2022,C&M-GMS Global Sum,DELEGATED GP,LARKSFIELD SURGERY,41826108,106579.62,GP Services
Department of Health,"NHS Beds, Luton & MK ICB",31/07/2022,C&M-GMS Global Sum,DELEGATED GP,LARKSIDE PRACTICE,41826110,71489.71,GP Services
Department of Health,"NHS Beds, Luton & MK ICB",31/07/2022,C&M-GMS Prem Actual Rent,DELEGATED GP,LARKSIDE PRACTICE,41826110,41962.50,GP Services
Department of Health,"NHS Beds, Luton & MK ICB",31/07/2022,C&M-GMS Global Sum,DELEGATED GP,LEIGHTON ROAD MEDICAL PRACTICE,41826113,137841.37,GP Services
Department of Health,"NHS Beds, Luton & MK ICB",31/07/2022,C&M-GMS Global Sum,DELEGATED GP,PRIORY GARDENS MEDICAL PRACTICE,41826115,128145.64,GP Services
Department of Health,"NHS Beds, Luton & MK ICB",31/07/2022,C&M-GMS Global Sum,DELEGATED GP,PRIORY MEDICAL PRACTICE,41826117,62177.48,GP Services
Department of Health,"NHS Beds, Luton & MK ICB",31/07/2022,C&M-GMS Prem Actual Rent,DELEGATED GP,PRIORY MEDICAL PRACTICE,41826117,29750.00,GP Services
Department of Health,"NHS Beds, Luton & MK ICB",31/07/2022,C&M-GMS Global Sum,DELEGATED GP,WHITE HORSE VALE,41826119,58400.80,GP Services
Department of Health,"NHS Beds, Luton & MK ICB",31/07/2022,C&M-GMS Global Sum,DELEGATED GP,DR SS BASRA,41826120,25781.55,GP Services
Department of Health,"NHS Beds, Luton & MK ICB",31/07/2022,C&M-GMS Global Sum,DELEGATED GP,BELL HOUSE MEDICAL PRACTICE,41826122,79568.55,GP Services
Department of Health,"NHS Beds, Luton & MK ICB",31/07/2022,C&M-GMS Global Sum,DELEGATED GP,ASPLANDS MEDICAL CENTRE,41826124,104378.74,GP Services
Department of Health,"NHS Beds, Luton & MK ICB",31/07/2022,C&M-GMS Global Sum,DELEGATED GP,SANDY HEALTH CENTRE,41826127,71343.36,GP Services
Department of Health,"NHS Beds, Luton & MK ICB",31/07/2022,C&M-GMS Global Sum,DELEGATED GP,OLIVER STREET SURGERY,41826129,64153.49,GP Services
Department of Health,"NHS Beds, Luton & MK ICB",31/07/2022,C&M-GMS Global Sum,DELEGATED GP,DR KM HEDGES & PARTNERS,41826131,53823.80,GP Services
Department of Health,"NHS Beds, Luton & MK ICB",31/07/2022,C&M-GMS Global Sum,DELEGATED GP,SHEFFORD HEALTH CENTRE,41826133,144526.33,GP Services
Department of Health,"NHS Beds, Luton & MK ICB",31/07/2022,C&M-GMS PCO Locum Adop/Pat/Mat,DELEGATED GP,SHEFFORD HEALTH CENTRE,41826133,40703.48,GP Services
Department of Health,"NHS Beds, Luton & MK ICB",31/07/2022,C&M-GMS Prem Healthcentre Rent,DELEGATED GP,SHEFFORD HEALTH CENTRE,41826133,43115.10,GP Services
Department of Health,"NHS Beds, Luton & MK ICB",31/07/2022,C&M-GMS Global Sum,DELEGATED GP,CADDINGTON MEDICAL PRACTICE,41826136,47181.20,GP Services
Department of Health,"NHS Beds, Luton & MK ICB",31/07/2022,C&M-GMS PCN DES Clin Pharmacist,DELEGATED GP,CADDINGTON MEDICAL PRACTICE,41826136,53568.61,GP Services
Department of Health,"NHS Beds, Luton & MK ICB",31/07/2022,C&M-GMS Global Sum,DELEGATED GP,STOPSLEY VILLAGE PRACTICE,41826138,69717.08,GP Services
Department of Health,"NHS Beds, Luton & MK ICB",31/07/2022,C&M-GMS Global Sum,DELEGATED GP,CASTLE ST,41826139,123292.54,GP Services
Department of Health,"NHS Beds, Luton & MK ICB",31/07/2022,C&M-GMS PCO Locum Adop/Pat/Mat,DELEGATED GP,CASTLE ST,41826139,30769.97,GP Services
Department of Health,"NHS Beds, Luton & MK ICB",31/07/2022,C&M-GMS Global Sum,DELEGATED GP,LEAGRAVE SURGERY,41826143,67696.80,GP Services
Department of Health,"NHS Beds, Luton & MK ICB",31/07/2022,C&M-GMS Global Sum,DELEGATED GP,HOCKWELL RING MEDICAL PRACTICE,41826145,42982.09,GP Services
Department of Health,"NHS Beds, Luton & MK ICB",31/07/2022,C&M-GMS Global Sum,DELEGATED GP,EASTGATE SURGERY,41826147,33035.97,GP Services
Department of Health,"NHS Beds, Luton & MK ICB",31/07/2022,C&M-GMS Global Sum,DELEGATED GP,CONWAY MED CTRE,41826148,53901.47,GP Services
Department of Health,"NHS Beds, Luton & MK ICB",31/07/2022,C&M-GMS Global Sum,DELEGATED GP,MALZEARD ROAD MEDICAL PRACTICE,41826151,69598.46,GP Services
Department of Health,"NHS Beds, Luton & MK ICB",31/07/2022,C&M-GMS Global Sum,DELEGATED GP,DR COLLINS & CARRAGHER,41826152,50744.98,GP Services
Department of Health,"NHS Beds, Luton & MK ICB",31/07/2022,C&M-GMS Global Sum,DELEGATED GP,PASTURES WAY SURGERY,41826155,30320.28,GP Services
Department of Health,"NHS Beds, Luton & MK ICB",31/07/2022,C&M-GMS Global Sum,DELEGATED GP,TODDINGTON MEDICAL CENTRE,41826157,61269.81,GP Services
Department of Health,"NHS Beds, Luton & MK ICB",31/07/2022,C&M-GMS Global Sum,DELEGATED GP,ASHCROFT ROAD MEDICAL PRACTICE,41826159,35259.64,GP Services
Department of Health,"NHS Beds, Luton & MK ICB",31/07/2022,C&M-GMS Global Sum,DELEGATED GP,BLENHEIM MEDICAL CENTRE,41826160,101018.72,GP Services
Department of Health,"NHS Beds, Luton & MK ICB",31/07/2022,C&M-GMS Global Sum,DELEGATED GP,DR ME GLAZE & PARTNERS,41826162,95540.40,GP Services
Department of Health,"NHS Beds, Luton & MK ICB",31/07/2022,ME - GMS GP Prior Year ERs,DELEGATED GP,DR ME GLAZE & PARTNERS,41826163,-25725.52,GP Services
Department of Health,"NHS Beds, Luton & MK ICB",31/07/2022,ME-GMS GP Prior Year EEs,DELEGATED GP,DR ME GLAZE & PARTNERS,41826163,-29396.37,GP Services
Department of Health,"NHS Beds, Luton & MK ICB",31/07/2022,C&M-GMS Global Sum,DELEGATED GP,BASSETT ROAD MEDICAL PRACTICE,41826165,145133.16,GP Services
Department of Health,"NHS Beds, Luton & MK ICB",31/07/2022,C&M-GMS Global Sum,DELEGATED GP,MEDICI MEDICAL CENTRE,41826167,118459.21,GP Services
Department of Health,"NHS Beds, Luton & MK ICB",31/07/2022,C&M-GMS Global Sum,DELEGATED GP,WEST STREET SURGERY,41826169,94604.93,GP Services
Department of Health,"NHS Beds, Luton & MK ICB",31/07/2022,C&M-GMS Global Sum,DELEGATED GP,OAKLEY SURGERY,41826171,57388.23,GP Services
Department of Health,"NHS Beds, Luton & MK ICB",31/07/2022,C&M-GMS Global Sum,DELEGATED GP,GOLDINGTON AVENUE SURGERY,41829985,115612.72,GP Services
Department of Health,"NHS Beds, Luton & MK ICB",31/07/2022,C&M-GMS PCO Locum Adop/Pat/Mat,DELEGATED GP,GOLDINGTON AVENUE SURGERY,41829985,38394.72,GP Services
Department of Health,"NHS Beds, Luton & MK ICB",31/07/2022,Clinical&Medical-Independent Sector,CARERS,SHAROOT LTD,41831985,31285.72,Care Fees
Department of Health,"NHS Beds, Luton & MK ICB",31/07/2022,Clinical&Medical-Independent Sector,TERMINATION OF PREGNANCY (TOP),BRITISH PREGNANCY ADVISORY SERVICE,41832029,54883.08,Independent Sector Healthcare Contract
Department of Health,"NHS Beds, Luton & MK ICB",31/07/2022,Clinical&Medical-Independent Sector,CARERS,KIMBOLTON LODGE LTD,41832103,38661.40,Care Fees
Department of Health,"NHS Beds, Luton & MK ICB",31/07/2022,Clinical&Medical-Independent Sector,CARERS,KIMBOLTON LODGE LTD,41832110,37414.28,Care Fees
Department of Health,"NHS Beds, Luton & MK ICB",31/07/2022,Clinical&Medical-Independent Sector,CARERS,KIMBOLTON LODGE LTD,41832117,38661.40,Care Fees
Department of Health,"NHS Beds, Luton & MK ICB",31/07/2022,Clinical&Medical-Independent Sector,COMMUNITY SERVICES B,RAVENSCROFT PHYSIOTHERAPY CENTRE,41832239,85000.00,Independent Sector Healthcare Contract
Department of Health,"NHS Beds, Luton & MK ICB",31/07/2022,Clinical&Medical-Independent Sector,COMMUNITY SERVICES B,CIRCLE CLINICAL SERVICES LTD,41832374,41667.00,Independent Sector Healthcare Contract
Department of Health,"NHS Beds, Luton & MK ICB",31/07/2022,Clinical&Medical-Independent Sector,COMMUNITY SERVICES B,CIRCLE CLINICAL SERVICES LTD,41832397,887500.00,Independent Sector Healthcare Contract
Department of Health,"NHS Beds, Luton & MK ICB",31/07/2022,C&M-APMS QOF Achievement,DELEGATED GP,ONEPRIMARYCARE,41834843,28106.85,GP Services
Department of Health,"NHS Beds, Luton & MK ICB",31/07/2022,Clinical&Medical-Independent Sector,CYP EATING DISORDER,ACTIVE LUTON,41835237,172400.00,Social Prescription Pilot
Department of Health,"NHS Beds, Luton & MK ICB",31/07/2022,C&M-GMS Global Sum,DELEGATED GP,HARROLD MEDICAL PRACTICE,41849800,55854.43,GP Services
Department of Health,"NHS Beds, Luton & MK ICB",31/07/2022,C&M-GMS Global Sum,DELEGATED GP,NEVILLE ROAD SURGERY,41849803,28358.93,GP Services
Department of Health,"NHS Beds, Luton & MK ICB",31/07/2022,C&M-GMS Global Sum,DELEGATED GP,DR KEDWARD & PARTNERS,41849805,152310.86,GP Services
Department of Health,"NHS Beds, Luton & MK ICB",31/07/2022,C&M-GMS Global Sum,DELEGATED GP,MERSEY PLACE MEDICAL PRACTICE,41849811,219614.00,GP Services
Department of Health,"NHS Beds, Luton & MK ICB",31/07/2022,C&M-GMS Prem Healthcentre Rent,DELEGATED GP,MERSEY PLACE MEDICAL PRACTICE,41849811,28443.75,GP Services
Department of Health,"NHS Beds, Luton & MK ICB",31/07/2022,C&M-GMS Global Sum,DELEGATED GP,QUEENS PARK SURGERY,41849814,88037.44,GP Services
Department of Health,"NHS Beds, Luton & MK ICB",31/07/2022,C&M-GMS PCN DES Clin Pharmacist,DELEGATED GP,QUEENS PARK SURGERY,41849814,39064.37,GP Services
Department of Health,"NHS Beds, Luton & MK ICB",31/07/2022,C&M-GMS Global Sum,DELEGATED GP,SALISBURY HOUSE SURGERY,41849818,85854.48,GP Services
Department of Health,"NHS Beds, Luton & MK ICB",31/07/2022,C&M-GMS Global Sum,DELEGATED GP,BUTE HOUSE MEDICAL PRACTICE,41849823,66203.59,GP Services
Department of Health,"NHS Beds, Luton & MK ICB",31/07/2022,C&M-GMS PCN DES Clin Pharmacist,DELEGATED GP,BUTE HOUSE MEDICAL PRACTICE,41849823,27750.35,GP Services
Department of Health,"NHS Beds, Luton & MK ICB",31/07/2022,C&M-GMS Global Sum,DELEGATED GP,SUNDON MEDICAL CENTRE,41849828,72809.16,GP Services
Department of Health,"NHS Beds, Luton & MK ICB",31/07/2022,C&M-GMS Global Sum,DELEGATED GP,DR IMRAN ISMAIL (E81043),41849831,81413.35,GP Services
Department of Health,"NHS Beds, Luton & MK ICB",31/07/2022,C&M-GMS Global Sum,DELEGATED GP,SAFFRON HEALTH PARTNERSHIP,41849834,167223.39,GP Services
Department of Health,"NHS Beds, Luton & MK ICB",31/07/2022,ME - GMS GP Prior Year ERs,DELEGATED GP,MALZEARD ROAD MEDICAL PRACTICE,41849841,-31240.69,GP Services
Department of Health,"NHS Beds, Luton & MK ICB",31/07/2022,ME-GMS GP Prior Year EEs,DELEGATED GP,MALZEARD ROAD MEDICAL PRACTICE,41849841,-26487.21,GP Services
Department of Health,"NHS Beds, Luton & MK ICB",31/07/2022,C&M-GMS Global Sum,DELEGATED GP,DE PARYS GROUP,41849843,300752.34,GP Services
Department of Health,"NHS Beds, Luton & MK ICB",31/07/2022,C&M-GMS PCN DES Clin Pharmacist,DELEGATED GP,DE PARYS GROUP,41849843,36388.66,GP Services
Department of Health,"NHS Beds, Luton & MK ICB",31/07/2022,C&M-GMS PCO Locum Adop/Pat/Mat,DELEGATED GP,DE PARYS GROUP,41849843,35557.60,GP Services
Department of Health,"NHS Beds, Luton & MK ICB",31/07/2022,C&M-GMS QOF Aspiration,DELEGATED GP,DE PARYS GROUP,41849843,35870.82,GP Services
Department of Health,"NHS Beds, Luton & MK ICB",31/07/2022,C&M-GMS Global Sum,DELEGATED GP,WOODLAND PRACTICE,41849853,87833.81,GP Services
Department of Health,"NHS Beds, Luton & MK ICB",31/07/2022,C&M-GMS Cost of Drugs -Dispensing,LOCAL INCENTIVE SCHEMES,GT BARFORD SURGERY,41852495,31021.96,GP Services
Department of Health,"NHS Beds, Luton & MK ICB",31/07/2022,C&M-GMS Cost of Drugs -Dispensing,LOCAL INCENTIVE SCHEMES,HARROLD MEDICAL PRACTICE,41852499,62957.65,GP Services
Department of Health,"NHS Beds, Luton & MK ICB",31/07/2022,C&M-GMS Cost of Drugs -Dispensing,LOCAL INCENTIVE SCHEMES,GREENSANDS MEDICAL PRACTICE,41852503,39021.67,GP Services
Department of Health,"NHS Beds, Luton & MK ICB",31/07/2022,C&M-GMS Cost of Drugs -Dispensing,LOCAL INCENTIVE SCHEMES,HOUGHTON CLOSE SURGERY,41852506,29646.88,GP Services
Department of Health,"NHS Beds, Luton & MK ICB",31/07/2022,C&M-GMS Cost of Drugs -Dispensing,LOCAL INCENTIVE SCHEMES,ASPLANDS MEDICAL CENTRE,41852551,42818.91,GP Services
Department of Health,"NHS Beds, Luton & MK ICB",31/07/2022,C&M-GMS Cost of Drugs -Dispensing,LOCAL INCENTIVE SCHEMES,DR KM HEDGES & PARTNERS,41852579,31196.94,GP Services
Department of Health,"NHS Beds, Luton & MK ICB",31/07/2022,C&M-GMS Cost of Drugs -Dispensing,LOCAL INCENTIVE SCHEMES,DE PARYS GROUP,41852622,28772.18,GP Services
Department of Health,"NHS Beds, Luton & MK ICB",31/07/2022,C&M-GMS Cost of Drugs -Dispensing,LOCAL INCENTIVE SCHEMES,DR ME GLAZE & PARTNERS,41852635,41827.76,GP Services
Department of Health,"NHS Beds, Luton & MK ICB",31/07/2022,Clinical&Medical-Independent Sector,WHEELCHAIR SERVICE,AJ MOBILITY LTD,41857016,74252.70,Wheelchair Service Supply
Department of Health,"NHS Beds, Luton & MK ICB",31/07/2022,Clinical&Medical-Independent Sector,CARERS,PARKLANDS NURSING HOME,41857068,60710.36,Care Fees
Department of Health,"NHS Beds, Luton & MK ICB",31/07/2022,Clinical&Medical-Independent Sector,CARERS,HC ONE LTD,41857109,32256.36,Care Fees
Department of Health,"NHS Beds, Luton & MK ICB",31/07/2022,Clinical&Medical-Independent Sector,CARERS,HC ONE LTD,41857129,34121.28,Care Fees
Department of Health,"NHS Beds, Luton & MK ICB",31/07/2022,Clinical&Medical-Independent Sector,ACUTE SERVICES B,CIRCLE HEALTH GROUP LTD,41857280,181231.60,Independent Sector Healthcare Contract
Department of Health,"NHS Beds, Luton & MK ICB",31/07/2022,Clinical&Medical-Independent Sector,ACUTE SERVICES B,CIRCLE HEALTH GROUP LTD,41857293,207933.98,Independent Sector Healthcare Contract
Department of Health,"NHS Beds, Luton & MK ICB",31/07/2022,Clinical&Medical-Commercial Sector,ACUTE NCA,SPIRE HEALTHCARE LTD,41857674,31776.84,Out of Area Treatment
Department of Health,"NHS Beds, Luton & MK ICB",31/07/2022,Clinical&Medical-Independent Sector,CARERS,PRESSBEAU LTD,41857845,67500.00,Care Fees
Department of Health,"NHS Beds, Luton & MK ICB",31/07/2022,Clinical&Medical-Independent Sector,MENTAL HEALTH ACT,SYMBIOSIS CARE LTD,41860793,45555.30,Care Fees
Department of Health,"NHS Beds, Luton & MK ICB",31/07/2022,Cont Care-Learning Disab(<65),CHC ADULT FULLY FUNDED,KNIGHTINGLES HEALTHCARE LTD,41860803,37315.10,Care Fees
Department of Health,"NHS Beds, Luton & MK ICB",31/07/2022,Cont Care-Learning Disab(<65),CHC ADULT FULLY FUNDED,KNIGHTINGLES HEALTHCARE LTD,41860807,36111.39,Care Fees
Department of Health,"NHS Beds, Luton & MK ICB",31/07/2022,Cont Care-Learning Disab(<65),CHC ADULT FULLY FUNDED,KNIGHTINGLES HEALTHCARE LTD,41860809,35807.08,Care Fees
Department of Health,"NHS Beds, Luton & MK ICB",31/07/2022,Cont Care-Learning Disab(<65),CHC ADULT FULLY FUNDED,KNIGHTINGLES HEALTHCARE LTD,41860812,34652.01,Care Fees
Department of Health,"NHS Beds, Luton & MK ICB",31/07/2022,Cont Care-Learning Disab(<65),CHC AD FULL FUND PERS HLTH BUD,RESPOND CARE LTD,41860818,26416.43,Personal health budget
Department of Health,"NHS Beds, Luton & MK ICB",31/07/2022,Cont Care-Learning Disab(<65),CHC AD FULL FUND PERS HLTH BUD,RESPOND CARE LTD,41860823,25564.29,Personal health budget
Department of Health,"NHS Beds, Luton & MK ICB",31/07/2022,Cont Care-Learning Disab(<65),CHC AD FULL FUND PERS HLTH BUD,RESPOND CARE LTD,41860828,25564.29,Personal health budget
Department of Health,"NHS Beds, Luton & MK ICB",31/07/2022,Clinical&Medical-Independent Sector,INTERMEDIATE CARE,DISABILITIES TRUST,41867723,-32916.00,Care Fees
Department of Health,"NHS Beds, Luton & MK ICB",31/07/2022,Clinical&Medical-Independent Sector,COMMUNITY SERVICES D,WHADDON MEDICAL CENTRE,41875929,33935.00,Community Service Contract
Department of Health,"NHS Beds, Luton & MK ICB",31/07/2022,Clinical&Medical-Independent Sector,COMMUNITY SERVICES D,SPECSAVERS HEARCARE LTD,41875930,29023.70,Hearing Aid Service
Department of Health,"NHS Beds, Luton & MK ICB",31/07/2022,Clinical&Medical-Independent Sector,COMMUNITY SERVICES D,SPECSAVERS HEARCARE LTD,41875931,25828.20,Hearing Aid Service
